fUSD/lending_fUSD_20250530
["ID","MTS","AMOUNT","RATE_DAILY","PERIOD"]
[363219798,1748627447055,-232.67103624,0.00021917,2]
[363219800,1748627447064,-646.9,0.00021917,2]
[363219802,1748627447073,-420.0,0.00021917,2]
[363219804,1748627447082,-420.0,0.00021917,2]
[363219806,1748627447092,-420.0,0.00021917,2]
[363219808,1748627447101,-1257.31,0.00021917,2]
[363219810,1748627447110,-554.48,0.00021917,2]
[363219812,1748627447119,-420.0,0.00021917,2]
[363219814,1748627447128,-420.0,0.00021917,2]
[363219816,1748627447140,-420.0,0.00021917,2]
[363219818,1748627447150,-420.0,0.00021917,2]
[363219820,1748627447159,-577.91,0.00021917,2]
[363219822,1748627447169,-420.0,0.00021917,2]
[363219824,1748627447180,-420.0,0.00021917,2]
[363219827,1748627447191,-420.0,0.00021917,2]
[363219829,1748627447200,-420.0,0.00021917,2]
[363219831,1748627447211,-420.0,0.00021917,2]
[363219833,1748627447220,-420.0,0.00021917,2]
[363219835,1748627447229,-429.80043753,0.00021917,2]
[363219836,1748627447237,-547.06,0.00021917,2]
[363219837,1748627447247,-420.0,0.00021917,2]
[363219838,1748627447256,-765.59,0.00021917,2]
[363219839,1748627447264,-420.0,0.00021917,2]
[363219840,1748627447273,-1047.36,0.00021917,2]
[363219841,1748627447283,-420.0,0.00021917,2]
[363219842,1748627447292,-420.0,0.00021917,2]
[363219843,1748627447301,-469.64,0.00021917,2]
[363219844,1748627447310,-755.15,0.00021917,2]
[363219845,1748627447319,-462.81,0.00021917,2]
[363219846,1748627447329,-420.0,0.00021917,2]
[363219847,1748627447338,-420.0,0.00021917,2]
[363219848,1748627447348,-420.0,0.00021917,2]
[363219849,1748627447358,-420.0,0.00021917,2]
[363219850,1748627447368,-420.0,0.00021917,2]
[363219851,1748627447378,-420.0,0.00021917,2]
[363219852,1748627447387,-420.0,0.00021917,2]
[363219853,1748627447397,-420.0,0.00021917,2]
[363219854,1748627447407,-420.0,0.00021917,2]
[363219855,1748627447417,-458.7,0.00021917,2]
[363219856,1748627447427,-420.0,0.00021917,2]
[363219857,1748627447436,-775.49,0.00021917,2]
[363219858,1748627447446,-420.0,0.00021917,2]
[363219859,1748627447456,-420.0,0.00021917,2]
[363219860,1748627447466,-420.0,0.00021917,2]
[363219861,1748627447475,-1116.81,0.00021917,2]
[363219862,1748627447485,-420.0,0.00021917,2]
[363219863,1748627447494,-420.0,0.00021917,2]
[363219864,1748627447503,-420.0,0.00021917,2]
[363219865,1748627447513,-420.0,0.00021917,2]
[363219866,1748627447533,-365.86006778,0.00021917,2]
[363219867,1748627447543,-420.0,0.00021917,2]
[363219868,1748627447552,-704.77,0.00021917,2]
[363219869,1748627447562,-420.0,0.00021917,2]
[363219870,1748627447571,-420.0,0.00021917,2]
[363219871,1748627447581,-420.0,0.00021917,2]
[363219872,1748627447591,-420.0,0.00021917,2]
[363219873,1748627447600,-420.0,0.00021917,2]
[363219874,1748627447610,-1032.49,0.00021917,2]
[363219875,1748627447619,-354.63389773,0.00021917,2]
[363219876,1748627447628,-420.0,0.00021917,2]
[363219877,1748627447637,-420.0,0.00021917,2]
[363219878,1748627447647,-425.12272986,0.00021917,2]
[363219879,1748627447656,-420.0,0.00021917,2]
[363219880,1748627447665,-420.0,0.00021917,2]
[363219881,1748627447675,-420.0,0.00021917,2]
[363219882,1748627447684,-420.0,0.00021917,2]
[363219883,1748627447694,-420.0,0.00021917,2]
[363219884,1748627447703,-500.0,0.00021918,2]
[363219885,1748627447713,-500.0,0.00021918,2]
[363219886,1748627447722,-500.0,0.00021918,2]
[363219887,1748627447731,-500.0,0.00021918,2]
[363219888,1748627447740,-500.0,0.00021918,2]
[363219889,1748627447751,-500.0,0.00021918,2]
[363219890,1748627447760,-500.0,0.00021918,2]
[363219891,1748627447770,-500.0,0.00021918,2]
[363219892,1748627447779,-500.0,0.00021918,2]
[363219893,1748627447789,-500.0,0.00021918,2]
[363219894,1748627447799,-500.0,0.00021918,2]
[363219895,1748627447811,-500.0,0.00021918,2]
[363219896,1748627447820,-500.0,0.00021918,2]
[363219897,1748627447831,-500.0,0.00021918,2]
[363219898,1748627447840,-500.0,0.00021918,2]
[363219899,1748627447850,-500.0,0.00021918,2]
[363219900,1748627447859,-291.87622662,0.00021918,2]
[363219901,1748627447868,-500.0,0.00021918,2]
[363219902,1748627447878,-500.0,0.00021918,2]
[363219903,1748627447889,-500.0,0.00021918,2]
[363219904,1748627447899,-247.93768651,0.00021918,2]
[363219905,1748627447908,-500.0,0.00021918,2]
[363219906,1748627447917,-570.1026569,0.00021918,2]
[363219907,1748627447926,-570.1026569,0.00021918,2]
[363219908,1748627447935,-570.1026569,0.00021918,2]
[363219909,1748627447944,-179.1742269,0.00021918,2]
[363219910,1748627447954,-570.1026569,0.00021918,2]
[363219911,1748627447963,-570.1026569,0.00021918,2]
[363219912,1748627447972,-570.1026569,0.00021918,2]
[363219913,1748627447982,-570.1026569,0.00021918,2]
[363219914,1748627447992,-570.1026569,0.00021918,2]
[363219915,1748627448002,-570.1026569,0.00021918,2]
[363219916,1748627448011,-570.1026569,0.00021918,2]
[363219917,1748627448021,-570.1026569,0.00021918,2]
[363219918,1748627448031,-570.1026569,0.00021918,2]
[363219919,1748627448041,-570.1026569,0.00021918,2]
[363219920,1748627448050,-570.1026569,0.00021918,2]
[363219921,1748627448059,-570.1026569,0.00021918,2]
[363219922,1748627448068,-570.1026569,0.00021918,2]
[363219923,1748627448077,-570.1026569,0.00021918,2]
[363219924,1748627448087,-570.1026569,0.00021918,2]
[363219925,1748627448097,-570.1026569,0.00021918,2]
[363219926,1748627448106,-570.1026569,0.00021918,2]
[363219927,1748627448115,-570.1026569,0.00021918,2]
[363219928,1748627448124,-570.1026569,0.00021918,2]
[363219929,1748627448133,-570.1026569,0.00021918,2]
[363219930,1748627448143,-570.1026569,0.00021918,2]
[363219931,1748627448152,-570.1026569,0.00021918,2]
[363219932,1748627448162,-570.1026569,0.00021918,2]
[363219933,1748627448172,-570.1026569,0.00021918,2]
[363219934,1748627448182,-570.1026569,0.00021918,2]
[363219935,1748627448192,-570.1026569,0.00021918,2]
[363219936,1748627448201,-570.1026569,0.00021918,2]
[363219937,1748627448211,-570.1026569,0.00021918,2]
[363219938,1748627448220,-570.1026569,0.00021918,2]
[363219939,1748627448230,-570.1026569,0.00021918,2]
[363219940,1748627448240,-570.1026569,0.00021918,2]
[363219941,1748627448250,-570.1026569,0.00021918,2]
[363219942,1748627448259,-570.1026569,0.00021918,2]
[363219943,1748627448269,-570.1026569,0.00021918,2]
[363219944,1748627448516,-570.1026569,0.00021918,2]
[363219945,1748627448527,-570.1026569,0.00021918,2]
[363219946,1748627448536,-570.1026569,0.00021918,2]
[363219947,1748627448546,-570.1026569,0.00021918,2]
[363219948,1748627448556,-570.1026569,0.00021918,2]
[363219949,1748627448565,-570.1026569,0.00021918,2]
[363219950,1748627448575,-570.1026569,0.00021918,2]
[363219951,1748627448584,-570.1026569,0.00021918,2]
[363219952,1748627448593,-570.1026569,0.00021918,2]
[363219953,1748627448603,-570.1026569,0.00021918,2]
[363219954,1748627448612,-570.1026569,0.00021918,2]
[363219955,1748627448622,-570.1026569,0.00021918,2]
[363219956,1748627448632,-570.1026569,0.00021918,2]
[363219957,1748627448643,-570.1026569,0.00021918,2]
[363219958,1748627448653,-570.1026569,0.00021918,2]
[363219959,1748627448663,-570.1026569,0.00021918,2]
[363219960,1748627448674,-570.1026569,0.00021918,2]
[363219961,1748627448684,-570.1026569,0.00021918,2]
[363219962,1748627448695,-570.1026569,0.00021918,2]
[363219963,1748627448704,-570.1026569,0.00021918,2]
[363219964,1748627448714,-570.1026569,0.00021918,2]
[363219965,1748627448723,-570.1026569,0.00021918,2]
[363219966,1748627448733,-570.1026569,0.00021918,2]
[363219967,1748627448742,-570.1026569,0.00021918,2]
[363219968,1748627448755,-570.1026569,0.00021918,2]
[363219969,1748627448764,-570.1026569,0.00021918,2]
[363219970,1748627448773,-570.1026569,0.00021918,2]
[363219971,1748627448783,-500.0,0.00021918,2]
[363219972,1748627448793,-500.0,0.00021918,2]
[363219973,1748627448803,-500.0,0.00021918,2]
[363219974,1748627448816,-500.0,0.00021918,2]
[363219975,1748627448825,-174.71493204,0.00021918,2]
[363219976,1748627448834,-570.10265688,0.00021918,2]
[363219977,1748627448845,-570.10265688,0.00021918,2]
[363219978,1748627448855,-570.10265688,0.00021918,2]
[363219979,1748627448864,-570.10265688,0.00021918,2]
[363219980,1748627448874,-570.10265688,0.00021918,2]
[363219981,1748627448884,-570.10265688,0.00021918,2]
[363219982,1748627448894,-570.10265688,0.00021918,2]
[363219983,1748627448904,-570.10265688,0.00021918,2]
[363219984,1748627448913,-570.10265688,0.00021918,2]
[363219985,1748627448923,-570.10265688,0.00021918,2]
[363219986,1748627448932,-570.10265688,0.00021918,2]
[363219987,1748627448942,-570.10265688,0.00021918,2]
[363219988,1748627448951,-570.10265688,0.00021918,2]
[363219989,1748627448960,-570.10265688,0.00021918,2]
[363219990,1748627448970,-570.10265688,0.00021918,2]
[363219991,1748627448980,-570.10265688,0.00021918,2]
[363219992,1748627448990,-570.10265688,0.00021918,2]
[363219993,1748627449003,-570.10265688,0.00021918,2]
[363219994,1748627449013,-167.2481227,0.00021957,2]
[363219995,1748627449022,-500.0,0.00021973,2]
[363219996,1748627449032,-546.95711903,0.00021973,2]
[363219997,1748627449041,-500.0,0.00021973,2]
[363219998,1748627449051,-500.0,0.00021973,2]
[363219999,1748627449061,-217.62485625,0.00021973,2]
[363220000,1748627449070,-501.3177613,0.00021973,2]
[363220001,1748627449080,-500.0,0.00021973,2]
[363220002,1748627449091,-359.05901085,0.00021973,2]
[363220003,1748627449101,-159.57199504,0.00021973,2]
[363220004,1748627449110,-500.70476926,0.00021973,2]
[363220005,1748627449120,-500.51754316,0.00021973,2]
[363220006,1748627449130,-500.0,0.00021973,2]
[363220007,1748627449140,-500.0,0.00021973,2]
[363220008,1748627449149,-501.98633899,0.00021973,2]
[363220009,1748627449160,-500.94347598,0.00021973,2]
[363220010,1748627449170,-500.55802474,0.00021973,2]
[363220011,1748627449180,-500.0,0.00021973,2]
[363220012,1748627449189,-500.0,0.00021973,2]
[363220013,1748627449199,-500.0,0.00021973,2]
[363220014,1748627449209,-316.81486897,0.00021973,2]
[363220015,1748627449218,-504.03314862,0.00021973,2]
[363220016,1748627449227,-500.0,0.00021973,2]
[363220017,1748627449240,-153.83086859,0.00021973,2]
[363220018,1748627449251,-500.65590479,0.00021973,2]
[363220019,1748627449260,-500.0,0.00021973,2]
[363220020,1748627449270,-500.0,0.00021973,2]
[363220021,1748627449278,-500.0,0.00021973,2]
[363220022,1748627449287,-500.0,0.00021973,2]
[363220023,1748627449297,-500.0,0.00021973,2]
[363220024,1748627449307,-248.46843206,0.00022,2]
[363220025,1748627449317,-500.0,0.00022,2]
[363220026,1748627449327,-9034.59,0.00022,7]
[363220027,1748627449337,-261326.35,0.00022,7]
[363220028,1748627449347,-151.0,0.00022,2]
[363220029,1748627449357,-187.0,0.00022,2]
[363220030,1748627449367,-1000.0,0.00022,2]
[363220031,1748627449376,-1000.0,0.00022,7]
[363220032,1748627449386,-1000.0,0.00022001,7]
[363220033,1748627449396,-165.34,0.00022009,2]
[363220034,1748627449406,-151.0,0.00022046,2]
[363220035,1748627449415,-156.0,0.00022046,2]
[363220036,1748627449426,-151.0,0.00022046,2]
[363220037,1748627449436,-233.44745062,0.0002207,2]
[363220038,1748627449446,-5944.51354678,0.00022072,6]
[363220039,1748627449455,-1034.9035726,0.00022084,2]
[363220040,1748627449466,-10737.70509968,0.00022091,2]
[363220041,1748627449476,-565.27464934,0.000221,2]
[363220042,1748627449485,-1870.00925426,0.00022104,2]
[363220043,1748627449495,-232.8541541,0.0002211,2]
[363220044,1748627449506,-154.791,0.00022124,2]
[363220045,1748627449516,-941.0,0.00022124,2]
[363220046,1748627449526,-1314.0,0.00022124,2]
[363220047,1748627449536,-810.0,0.00022124,2]
[363220048,1748627449546,-634.0,0.00022124,2]
[363220049,1748627449556,-1155.0,0.00022124,2]
[363220050,1748627449566,-924.0,0.00022124,2]
[363220051,1748627449577,-1268.0,0.00022124,2]
[363220052,1748627449597,-588.0,0.00022124,2]
[363220053,1748627449606,-556.0,0.00022124,2]
[363220054,1748627449616,-1466.0,0.00022124,2]
[363220055,1748627449627,-4068.0,0.00022124,2]
[363220056,1748627449636,-848.0,0.00022124,2]
[363220057,1748627449646,-274.455,0.00022124,2]
[363220058,1748627449655,-284.369,0.00022124,2]
[363220059,1748627449665,-6929.0,0.00022124,2]
[363220060,1748627449674,-882.0,0.00022124,2]
[363220061,1748627449684,-1906.96671968,0.00022164,2]
[363220062,1748627449694,-500.0,0.00022164,2]
[363220063,1748627449704,-306.85622533,0.00022191,2]
[363220064,1748627449714,-955.82,0.00022191,2]
[363220065,1748627449723,-420.0,0.00022191,2]
[363220066,1748627449733,-420.0,0.00022191,2]
[363220067,1748627449743,-420.0,0.00022191,2]
[363220068,1748627449753,-420.0,0.00022191,2]
[363220069,1748627449763,-473.2,0.00022191,2]
[363220070,1748627449773,-799.79,0.00022191,2]
[363220071,1748627449783,-420.0,0.00022191,2]
[363220072,1748627449792,-420.0,0.00022191,2]
[363220073,1748627449802,-420.0,0.00022191,2]
[363220074,1748627449816,-420.0,0.00022191,2]
[363220075,1748627449825,-420.0,0.00022191,2]
[363220076,1748627449834,-420.0,0.00022191,2]
[363220077,1748627449843,-500.0,0.00022191,2]
[363220078,1748627449854,-436.94081366,0.00022191,2]
[363220079,1748627449863,-420.0,0.00022191,2]
[363220080,1748627449872,-420.0,0.00022191,2]
[363220081,1748627449881,-420.0,0.00022191,2]
[363220082,1748627449891,-420.0,0.00022191,2]
[363220083,1748627449902,-420.0,0.00022191,2]
[363220084,1748627449911,-420.09,0.00022191,2]
[363220085,1748627449921,-342.73522342,0.00022191,2]
[363220086,1748627449930,-420.0,0.00022191,2]
[363220087,1748627449940,-420.0,0.00022191,2]
[363220088,1748627449949,-466.06,0.00022191,2]
[363220089,1748627449959,-420.0,0.00022191,2]
[363220090,1748627449969,-420.0,0.00022191,2]
[363220091,1748627449978,-420.0,0.00022191,2]
[363220092,1748627449988,-420.0,0.00022191,2]
[363220093,1748627449998,-420.0,0.00022191,2]
[363220094,1748627450008,-495.41155693,0.00022191,2]
[363220095,1748627450018,-420.0,0.00022191,2]
[363220096,1748627450028,-420.0,0.00022191,2]
[363220097,1748627450037,-560.06,0.00022191,2]
[363220098,1748627450047,-423.58217499,0.00022191,2]
[363220099,1748627450057,-490.06,0.00022191,2]
[363220100,1748627450067,-420.0,0.00022191,2]
[363220101,1748627450076,-420.0,0.00022191,2]
[363220102,1748627450086,-520.96898813,0.00022191,2]
[363220103,1748627450096,-420.0,0.00022191,2]
[363220104,1748627450106,-420.0,0.00022191,2]
[363220105,1748627450116,-420.0,0.00022191,2]
[363220106,1748627450125,-420.0,0.00022191,2]
[363220107,1748627450136,-420.0,0.00022191,2]
[363220108,1748627450145,-420.0,0.00022191,2]
[363220109,1748627450155,-420.0,0.00022191,2]
[363220110,1748627450164,-422.49321986,0.00022191,2]
[363220111,1748627450174,-422.49350241,0.00022191,2]
[363220112,1748627450183,-426.97,0.00022191,2]
[363220113,1748627450193,-420.0,0.00022191,2]
[363220114,1748627450203,-420.0,0.00022191,2]
[363220115,1748627450213,-481.06471695,0.00022191,2]
[363220116,1748627450223,-420.0,0.00022191,2]
[363220117,1748627450232,-420.0,0.00022191,2]
[363220118,1748627450242,-420.0,0.00022191,2]
[363220119,1748627450253,-421.2217193,0.00022191,2]
[363220120,1748627450262,-420.0,0.00022191,2]
[363220121,1748627450271,-420.0,0.00022191,2]
[363220122,1748627450281,-420.0,0.00022191,2]
[363220123,1748627450290,-420.0,0.00022191,2]
[363220124,1748627450300,-420.0,0.00022191,2]
[363220125,1748627450310,-420.0,0.00022191,2]
[363220126,1748627450319,-420.0,0.00022191,2]
[363220127,1748627450328,-420.0,0.00022191,2]
[363220128,1748627450338,-420.0,0.00022191,2]
[363220129,1748627450348,-694.93,0.00022191,2]
[363220130,1748627450358,-157.47666776,0.00022191,2]
[363220131,1748627450367,-420.0,0.00022191,2]
[363220132,1748627450376,-430.50602941,0.00022191,2]
[363220133,1748627450386,-420.0,0.00022191,2]
[363220134,1748627450396,-1294.2,0.00022191,2]
[363220135,1748627450405,-420.0,0.00022191,2]
[363220136,1748627450414,-420.0,0.00022191,2]
[363220137,1748627450424,-420.0,0.00022191,2]
[363220138,1748627450435,-357.0681211,0.00022191,2]
[363220139,1748627450444,-420.0,0.00022191,2]
[363220140,1748627450454,-420.0,0.00022191,2]
[363220141,1748627450464,-427.9150589,0.00022191,2]
[363220142,1748627450474,-420.0,0.00022191,2]
[363220143,1748627450484,-420.0,0.00022191,2]
[363220144,1748627450494,-420.0,0.00022191,2]
[363220145,1748627450503,-420.0,0.00022191,2]
[363220146,1748627450514,-420.0,0.00022191,2]
[363220147,1748627450523,-420.0,0.00022191,2]
[363220148,1748627450533,-467.70783995,0.00022191,2]
[363220149,1748627450542,-420.0,0.00022191,2]
[363220150,1748627450552,-420.0,0.00022191,2]
[363220151,1748627450562,-420.0,0.00022191,2]
[363220152,1748627450571,-446.22,0.00022191,2]
[363220153,1748627450581,-420.0,0.00022191,2]
[363220154,1748627450591,-346.62196845,0.00022191,2]
[363220155,1748627450601,-420.0,0.00022191,2]
[363220156,1748627450611,-420.0,0.00022191,2]
[363220157,1748627450622,-465.02943667,0.00022191,2]
[363220158,1748627450631,-420.0,0.00022191,2]
[363220159,1748627450640,-885.94,0.00022191,2]
[363220160,1748627450650,-420.0,0.00022191,2]
[363220161,1748627450659,-420.0,0.00022191,2]
[363220162,1748627450669,-420.0,0.00022191,2]
[363220163,1748627450678,-424.12592633,0.00022191,2]
[363220164,1748627450688,-426.85786533,0.00022191,2]
[363220165,1748627450697,-420.0,0.00022191,2]
[363220166,1748627450707,-420.0,0.00022191,2]
[363220167,1748627450717,-420.0,0.00022191,2]
[363220168,1748627450726,-420.0,0.00022191,2]
[363220169,1748627450736,-420.0,0.00022191,2]
[363220170,1748627450747,-422.87291721,0.00022191,2]
[363220171,1748627450757,-420.0,0.00022191,2]
[363220172,1748627450767,-420.0,0.00022191,2]
[363220173,1748627450778,-420.0,0.00022191,2]
[363220174,1748627450788,-420.0,0.00022191,2]
[363220175,1748627450797,-430.70620808,0.00022191,2]
[363220176,1748627450809,-420.0,0.00022191,2]
[363220177,1748627450819,-420.0,0.00022191,2]
[363220178,1748627450829,-420.0,0.00022191,2]
[363220179,1748627450839,-449.50559259,0.00022191,2]
[363220180,1748627450849,-420.0,0.00022191,2]
[363220181,1748627450858,-420.0,0.00022191,2]
[363220182,1748627450868,-432.60614583,0.00022191,2]
[363220183,1748627450877,-420.0,0.00022191,2]
[363220184,1748627450888,-420.0,0.00022191,2]
[363220185,1748627450898,-507.6,0.00022191,2]
[363220186,1748627450907,-425.36916567,0.00022191,2]
[363220187,1748627450917,-420.0,0.00022191,2]
[363220188,1748627450927,-420.0,0.00022191,2]
[363220189,1748627450936,-420.0,0.00022191,2]
[363220190,1748627450946,-420.0,0.00022191,2]
[363220191,1748627450955,-429.82331367,0.00022191,2]
[363220192,1748627450965,-431.59581778,0.00022191,2]
[363220193,1748627450974,-420.0,0.00022191,2]
[363220194,1748627450985,-420.0,0.00022191,2]
[363220195,1748627450995,-420.0,0.00022191,2]
[363220196,1748627451005,-444.28,0.00022191,2]
[363220197,1748627451015,-420.0,0.00022191,2]
[363220198,1748627451024,-420.0,0.00022191,2]
[363220199,1748627451034,-420.0,0.00022191,2]
[363220200,1748627451043,-421.70007484,0.00022191,2]
[363220201,1748627451053,-525.5,0.00022191,2]
[363220202,1748627451063,-427.41294057,0.00022191,2]
[363220203,1748627451073,-420.0,0.00022191,2]
[363220204,1748627451084,-420.0,0.00022191,2]
[363220205,1748627451093,-459.51515186,0.00022191,2]
[363220206,1748627451103,-443.05,0.00022191,2]
[363220207,1748627451112,-420.0,0.00022191,2]
[363220208,1748627451122,-420.0,0.00022191,2]
[363220209,1748627451131,-420.0,0.00022191,2]
[363220210,1748627451142,-420.0,0.00022191,2]
[363220211,1748627451152,-420.0,0.00022191,2]
[363220212,1748627451162,-420.0,0.00022191,2]
[363220213,1748627451172,-420.0,0.00022191,2]
[363220214,1748627451181,-420.0,0.00022191,2]
[363220215,1748627451190,-420.0,0.00022191,2]
[363220216,1748627451200,-420.0,0.00022191,2]
[363220217,1748627451209,-420.0,0.00022191,2]
[363220218,1748627451219,-420.0,0.00022191,2]
[363220219,1748627451229,-585.74,0.00022191,2]
[363220220,1748627451238,-419.80005227,0.00022191,2]
[363220221,1748627451248,-420.0,0.00022191,2]
[363220222,1748627451258,-420.0,0.00022191,2]
[363220223,1748627451267,-1000.0,0.00022191,2]
[363220224,1748627451276,-413.44417477,0.00022191,2]
[363220225,1748627451286,-425.60546631,0.00022191,2]
[363220226,1748627451295,-420.0,0.00022191,2]
[363220227,1748627451304,-420.0,0.00022191,2]
[363220228,1748627451314,-420.0,0.00022191,2]
[363220229,1748627451323,-420.0,0.00022191,2]
[363220230,1748627451332,-420.0,0.00022191,2]
[363220231,1748627451342,-565.76451165,0.00022191,2]
[363220232,1748627451352,-420.0,0.00022191,2]
[363220233,1748627451362,-420.0,0.00022191,2]
[363220234,1748627451371,-420.0,0.00022191,2]
[363220235,1748627451380,-427.18207552,0.00022191,2]
[363220236,1748627451390,-420.0,0.00022191,2]
[363220237,1748627451399,-420.0,0.00022191,2]
[363220238,1748627451408,-420.0,0.00022191,2]
[363220239,1748627451418,-420.0,0.00022191,2]
[363220240,1748627451427,-1271.37,0.00022191,2]
[363220241,1748627451437,-420.0,0.00022191,2]
[363220242,1748627451446,-420.0,0.00022191,2]
[363220243,1748627451456,-460.77,0.00022191,2]
[363220244,1748627451465,-420.0,0.00022191,2]
[363220245,1748627451474,-1338.72,0.00022191,2]
[363220246,1748627451484,-420.0,0.00022191,2]
[363220247,1748627451493,-420.0,0.00022191,2]
[363220248,1748627451504,-420.0,0.00022191,2]
[363220249,1748627451514,-427.15853251,0.00022191,2]
[363220250,1748627451523,-567.76810741,0.00022191,2]
[363220251,1748627451533,-421.67450592,0.00022191,2]
[363220252,1748627451542,-420.0,0.00022191,2]
[363220253,1748627451552,-420.0,0.00022191,2]
[363220254,1748627451562,-1177.2,0.00022191,2]
[363220255,1748627451571,-432.94958335,0.00022191,2]
[363220256,1748627451581,-423.83649276,0.00022191,2]
[363220257,1748627451590,-420.0,0.00022191,2]
[363220258,1748627451599,-620.11,0.00022191,2]
[363220259,1748627451608,-420.0,0.00022191,2]
[363220260,1748627451617,-420.0,0.00022191,2]
[363220261,1748627451627,-420.0,0.00022191,2]
[363220262,1748627451636,-1663.49,0.00022191,2]
[363220263,1748627451645,-420.0,0.00022191,2]
[363220264,1748627451654,-420.0,0.00022191,2]
[363220265,1748627451663,-1352.97,0.00022191,2]
[363220266,1748627451673,-420.0,0.00022191,2]
[363220267,1748627451682,-420.0,0.00022191,2]
[363220268,1748627451691,-420.0,0.00022191,2]
[363220269,1748627451700,-603.62,0.00022191,2]
[363220270,1748627451710,-423.93422055,0.00022191,2]
[363220271,1748627451719,-420.0,0.00022191,2]
[363220272,1748627451728,-420.0,0.00022191,2]
[363220273,1748627451737,-420.0,0.00022191,2]
[363220274,1748627451746,-420.0,0.00022191,2]
[363220275,1748627451932,-420.0,0.00022191,2]
[363220276,1748627451962,-420.0,0.00022191,2]
[363220277,1748627451972,-420.0,0.00022191,2]
[363220278,1748627451981,-1094.43,0.00022191,2]
[363220279,1748627451990,-420.0,0.00022191,2]
[363220280,1748627452000,-420.0,0.00022191,2]
[363220281,1748627452010,-698.83,0.00022191,2]
[363220282,1748627452019,-425.36315524,0.00022191,2]
[363220283,1748627452028,-420.0,0.00022191,2]
[363220284,1748627452037,-420.0,0.00022191,2]
[363220285,1748627452046,-500.0,0.00022191,2]
[363220286,1748627452055,-655.37,0.00022191,2]
[363220287,1748627452065,-420.0,0.00022191,2]
[363220288,1748627452074,-1452.17,0.00022191,2]
[363220289,1748627452084,-420.0,0.00022191,2]
[363220290,1748627452093,-275.77848789,0.00022191,2]
[363220291,1748627452103,-420.0,0.00022191,2]
[363220292,1748627452113,-551.23,0.00022191,2]
[363220293,1748627452122,-420.0,0.00022191,2]
[363220294,1748627452131,-420.0,0.00022191,2]
[363220295,1748627452141,-420.0,0.00022191,2]
[363220296,1748627452151,-423.56493531,0.00022191,2]
[363220297,1748627452163,-423.93726375,0.00022191,2]
[363220298,1748627452173,-420.0,0.00022191,2]
[363220299,1748627452181,-183.72482345,0.00022191,2]
[363220300,1748627452191,-420.0,0.00022191,2]
[363220301,1748627452200,-420.0,0.00022191,2]
[363220302,1748627452209,-420.0,0.00022191,2]
[363220303,1748627452219,-420.0,0.00022191,2]
[363220304,1748627452228,-478.64,0.00022191,2]
[363220305,1748627452238,-495.39,0.00022191,2]
[363220306,1748627452247,-420.0,0.00022191,2]
[363220307,1748627452258,-515.39,0.00022191,2]
[363220308,1748627452268,-493.86601578,0.00022191,2]
[363220309,1748627452278,-1692.24,0.00022191,2]
[363220310,1748627452287,-420.0,0.00022191,2]
[363220311,1748627452296,-956.84,0.00022191,2]
[363220312,1748627452306,-730.46,0.00022191,2]
[363220313,1748627452316,-420.0,0.00022191,2]
[363220314,1748627452327,-420.0,0.00022191,2]
[363220315,1748627452337,-777.28,0.00022191,2]
[363220316,1748627452346,-420.0,0.00022191,2]